bitfinex-derivatives/quotes_ETHF0:USTF0_20260312
["timestamp","ask_amount","ask_price","bid_price","bid_amount"]
[1773277146166,1.31434439,2056.4,2056.0,0.62152713]
[1773277146370,0.37579429,2056.3,2056.0,0.62152713]
[1773277147370,1.69066121,2056.4,2056.0,0.62152713]
[1773277147671,0.37631682,2056.4,2056.0,0.62152713]
[1773277151972,0.00349294,2056.5,2056.0,0.62152713]
[1773277152972,0.38088456,2056.5,2056.0,0.62152713]
[1773277158073,0.41072371,2056.3,2055.9,0.62152713]
[1773277160386,1.31434439,2056.3,2055.9,0.62152713]
[1773277160686,0.41036726,2056.2,2055.9,0.62152713]
[1773277161387,1.31434439,2056.3,2055.9,0.62152713]
[1773277161582,0.00349294,2056.5,2056.0,0.58917045]
[1773277162083,0.40987231,2056.5,2056.0,0.58917045]
[1773277189613,6.372,2056.4,2056.0,0.58917045]
[1773277189812,6.78024056,2056.4,2056.0,0.58917045]
[1773277190513,0.40814122,2056.2,2055.7,0.5824447]
[1773277192012,6.78039441,2056.1,2055.7,0.5824447]
[1773277194409,0.40814419,2056.0,2055.7,0.5824447]
[1773277194611,0.40814419,2056.0,2055.5,0.5824447]
[1773277201218,0.63252871,2055.8,2055.3,0.5824447]
[1773277201418,7.68667342,2055.7,2055.2,0.5746421]
[1773277201624,0.63252871,2055.6,2055.2,0.5746421]
[1773277201921,7.00452871,2056.0,2055.2,0.5746421]
[1773277202512,7.00452871,2056.0,2055.2,0.5787159]
[1773277202513,0.63252871,2055.9,2055.2,0.5787159]
[1773277202919,6.372,2056.0,2055.2,0.5787159]
[1773277203121,7.00452871,2056.0,2055.2,0.5787159]
[1773277203525,0.63252871,2055.9,2055.2,0.5787159]
[1773277206421,0.63252871,2055.8,2055.2,0.5787159]
[1773277206618,0.63252871,2055.7,2055.0,0.5824447]
[1773277206826,6.372,2056.0,2055.0,0.5824447]
[1773277206827,0.63252871,2055.5,2055.0,0.5824447]
[1773277207026,0.63252871,2055.4,2055.0,0.5824447]
[1773277207729,0.63252871,2055.4,2055.0,0.5860065]
[1773277212732,6.373,2055.5,2055.0,0.5860065]
[1773277212929,6.36778837,2056.2,2055.0,0.5860065]
[1773277212930,7.00552871,2055.8,2055.0,0.5860065]
[1773277213835,6.373,2055.8,2055.0,0.5860065]
[1773277214230,7.00552871,2055.8,2055.0,0.5860065]
[1773277215430,6.373,2055.8,2055.0,0.5860065]
[1773277217034,6.373,2055.8,2055.2,0.53416692]
[1773277217231,0.63252871,2056.2,2055.4,0.53416692]
[1773277217633,0.63252871,2056.2,2055.3,1.31467342]
[1773277217833,0.63252871,2056.2,2055.2,0.53416692]
[1773277218538,0.63252871,2056.2,2055.6,0.53331872]
[1773277223534,0.63252871,2056.2,2055.8,0.53443027]
[1773277225342,7.00657647,2056.3,2055.9,1.84636045]
[1773277225540,7.00657647,2056.3,2056.0,0.53232205]
[1773277225736,0.63357647,2056.2,2055.9,1.84702502]
[1773277228741,0.63357647,2056.4,2056.0,0.57552005]
[1773277228946,0.00349294,2056.5,2056.2,0.57552005]
[1773277229140,0.63357647,2056.7,2056.2,0.57552005]
[1773277230045,0.63853989,2056.7,2056.2,0.57552005]
[1773277231544,0.63853989,2056.7,2056.1,1.88955845]
[1773277233349,0.63853989,2056.7,2056.1,0.57552005]
[1773277235349,0.63853989,2056.7,2056.2,0.57552005]
[1773277237651,0.63853989,2056.7,2056.0,0.57552005]
[1773277238747,0.63357647,2056.5,2056.0,0.57552005]
[1773277239055,0.63357647,2056.5,2055.4,7.8341397]
[1773277239056,0.63357647,2056.1,2055.4,0.57552005]
[1773277239248,0.63357647,2055.8,2055.1,0.57552005]
[1773277239953,0.63357647,2055.6,2055.1,0.57552005]
[1773277240851,0.44344941,2055.6,2055.1,0.57552005]
[1773277242451,0.59492773,2055.8,2055.3,0.57403985]
[1773277245364,6.372,2055.9,2055.4,0.57403985]
[1773277245561,6.96692773,2055.9,2055.4,0.57403985]
[1773277246360,0.59492773,2055.8,2055.4,0.57403985]
[1773277246661,0.59492773,2055.8,2055.2,0.57403985]
[1773277256771,0.59492773,2055.8,2055.0,0.0035618]
[1773277257074,0.62582294,2055.6,2055.0,0.59248881]
[1773277260378,0.62582294,2055.4,2055.0,0.59248881]
[1773277260673,0.62582294,2055.4,2054.8,0.58892701]
[1773277261581,0.62582294,2055.4,2054.8,0.59517037]
[1773277263582,0.62582294,2055.2,2054.8,0.00624336]
[1773277263782,0.62582294,2055.2,2054.6,0.58892701]
[1773277263978,6.392,2055.4,2054.6,0.58892701]
[1773277263979,0.62582294,2055.0,2054.6,0.58892701]
[1773277264178,0.62582294,2055.0,2053.8,10.12103311]
[1773277264179,0.62582294,2054.9,2054.4,0.5105876]
[1773277264476,0.62582294,2054.7,2054.1,0.5105876]
[1773277264872,0.62994567,2054.7,2054.1,0.51573931]
[1773277265484,0.62582294,2054.9,2054.5,0.50795523]
[1773277265680,0.62582294,2055.2,2054.5,0.50795523]
[1773277265875,0.62582294,2055.1,2054.5,0.50795523]
[1773277266683,0.63203894,2055.1,2054.5,0.50795523]
[1773277270488,0.62582294,2054.9,2054.5,0.50795523]
[1773277271184,0.62582294,2054.9,2054.3,0.58892701]
[1773277271383,0.62582294,2054.5,2054.2,0.58892701]
[1773277271883,0.62582294,2054.3,2053.5,8.18265039]
[1773277272086,0.62582294,2054.3,2053.1,12.73250573]
[1773277272087,1.93986134,2054.1,2053.6,0.58892701]
[1773277272287,0.62582294,2054.1,2053.6,0.58892701]
[1773277272986,0.62582294,2054.1,2053.7,0.58892701]
[1773277273383,6.392,2054.7,2054.1,0.58892701]
[1773277273586,0.62582294,2054.1,2053.6,0.59285037]
[1773277274085,1.3140384,2054.5,2053.6,0.59285037]
[1773277274086,1.93986134,2054.0,2053.6,0.59285037]
[1773277274389,0.62858068,2054.1,2053.5,0.03718184]
[1773277275180,0.62858068,2054.1,2053.5,0.04288254]
[1773277276290,0.62582294,2053.9,2053.5,0.0057007]
[1773277276588,0.62582294,2053.9,2053.3,0.05660737]
[1773277276786,1.3140384,2054.5,2053.3,0.05660737]
[1773277276787,0.62582294,2054.1,2053.3,0.05660737]
[1773277276979,0.62582294,2054.1,2053.0,1.3140384]
[1773277276980,0.62582294,2054.1,2053.7,0.05543117]
[1773277277184,0.62582294,2054.1,2053.0,1.3140384]
[1773277277185,0.62582294,2054.4,2053.9,0.05543117]
[1773277277380,0.62582294,2054.4,2053.9,0.0604356]
[1773277278894,0.62582294,2054.4,2053.9,0.00500443]
[1773277279187,0.62582294,2054.4,2053.9,0.04869512]
[1773277280792,0.62569346,2054.8,2054.1,0.04209728]
[1773277282595,0.62569346,2054.8,2054.0,1.35471528]
[1773277283092,0.6285717,2054.6,2054.0,1.35471528]
[1773277285094,0.6285717,2054.6,2054.1,0.04512447]
[1773277287297,0.6285717,2054.6,2053.9,0.05556451]
[1773277291701,0.6285717,2054.6,2053.9,0.00500443]
[1773277294295,0.61299493,2054.3,2053.2,7.70845808]
[1773277294495,0.61299493,2054.3,2053.3,0.1147347]
[1773277294690,0.61299493,2054.2,2053.3,0.1147347]
[1773277295295,0.61299493,2054.2,2053.3,0.11905769]
[1773277299399,0.61299493,2054.2,2053.7,0.1278618]
[1773277300207,0.61299493,2054.2,2053.6,0.13204255]
[1773277301299,0.65822378,2054.1,2053.3,0.14082175]
[1773277304308,0.65822378,2054.1,2053.3,0.00432299]
[1773277305805,0.65822378,2054.1,2053.3,0.14349784]
[1773277315713,0.65822378,2054.1,2053.3,0.00432299]
[1773277317122,0.641494,2053.9,2053.3,0.00432299]
[1773277318022,0.641494,2053.9,2053.3,0.16286281]
[1773277321422,0.641494,2053.9,2053.3,0.00432299]
[1773277322522,0.641494,2053.9,2053.3,0.16741312]
[1773277325323,0.641494,2053.9,2053.3,0.00432299]
[1773277326827,0.641494,2053.9,2052.9,6.375]
[1773277326828,0.641494,2053.6,2052.9,7.59372338]
[1773277327124,1.31624251,2053.7,2052.6,7.59372338]
[1773277327125,0.641494,2053.4,2052.6,7.59372338]
[1773277327325,0.641494,2053.4,2052.7,0.17473252]
[1773277327719,0.64695361,2053.4,2052.7,0.17877501]
[1773277328924,0.64695361,2053.4,2052.7,0.00404249]
[1773277330636,1.31624251,2053.1,2052.4,3.84628687]
[1773277330934,0.09899933,2053.0,2052.2,0.66554905]
[1773277331628,0.09899933,2053.0,2052.2,0.66991044]
[1773277331824,0.09387969,2052.8,2051.7,0.66554905]
[1773277332025,0.09387969,2052.7,2051.6,0.66554905]
[1773277332829,0.09387969,2052.7,2051.6,0.66960541]
[1773277333033,0.09010423,2052.5,2051.6,0.00405636]
[1773277333228,0.08604787,2052.3,2050.8,6.375]
[1773277333429,0.08604787,2052.1,2050.9,0.66554905]
[1773277334326,0.08604787,2052.1,2050.9,0.6697198]
[1773277334726,0.08841756,2052.3,2051.1,0.66554905]
[1773277334930,0.08767718,2052.9,2051.5,0.66554905]
[1773277335126,0.08767718,2052.7,2051.1,0.66554905]
[1773277335338,0.08767718,2052.5,2051.1,0.66554905]
[1773277335733,0.08767718,2052.3,2051.1,0.66554905]
[1773277343742,0.25532527,2052.1,2051.1,0.66554905]
[1773277345238,0.24362,2052.2,2051.1,0.66554905]
[1773277345239,0.25555727,2051.9,2051.1,0.66554905]
[1773277345443,0.25989607,2051.9,2051.0,0.68655351]
[1773277352446,0.32006446,2051.9,2051.0,0.68655351]
[1773277354843,0.0043388,2051.9,2051.0,0.68655351]
[1773277355045,0.31905401,2052.3,2051.3,0.68655351]
[1773277356049,0.32352641,2052.3,2051.3,0.68655351]
[1773277357051,0.32460897,2052.1,2051.0,0.68655351]
[1773277358141,0.32663297,2051.9,2051.0,0.68655351]
[1773277359552,0.32427686,2051.8,2051.0,0.68655351]
[1773277360248,0.3220813,2051.1,2050.4,0.68655351]
[1773277361252,0.3220813,2051.1,2050.4,0.69170101]
[1773277365551,0.28755706,2051.0,2050.4,0.69170101]
[1773277369559,0.28755706,2051.0,2050.4,0.0051475]
[1773277369859,0.28755706,2051.0,2050.4,0.70455186]
[1773277373268,0.33081,2050.8,2050.4,0.0051475]
[1773277373570,0.3347691,2050.8,2050.3,0.7120381]
[1773277374167,0.2438,2050.7,2049.6,0.7120381]
[1773277374368,0.33243137,2050.5,2049.6,0.71586919]
[1773277374574,6.382,2050.5,2049.6,0.71586919]
[1773277376171,6.7230952,2050.5,2049.6,0.71586919]
[1773277376674,6.382,2050.5,2049.6,0.71586919]
[1773277377169,0.35552434,2050.4,2049.6,0.71586919]
[1773277379370,6.382,2050.5,2049.6,0.71586919]
[1773277379676,0.36001323,2050.4,2049.6,0.71586919]
[1773277380572,6.382,2050.5,2049.6,0.71586919]
[1773277383970,6.382,2050.5,2049.6,0.00383109]
[1773277383971,0.25974644,2050.2,2049.6,0.00383109]
[1773277384173,0.25974644,2049.7,2049.3,1.56966427]
[1773277384370,0.25974644,2049.7,2049.3,0.67173277]
[1773277384577,0.25974644,2049.7,2048.9,0.74804702]
[1773277384775,0.00159475,2049.6,2048.9,0.74804702]
[1773277385082,0.00164288,2049.2,2048.1,0.74802295]
[1773277385280,0.00164288,2049.2,2048.1,0.75352797]
[1773277385281,0.00164288,2049.0,2048.1,0.75352797]
[1773277385779,6.3982185,2049.1,2048.1,0.75352797]
[1773277386373,0.00432943,2049.2,2048.1,0.75352797]
[1773277386575,0.00432943,2049.2,2048.4,0.74804719]
[1773277386774,6.40606231,2049.6,2048.4,0.74804719]
[1773277387782,6.41130246,2049.6,2048.4,0.74804719]
[1773277388081,0.00524015,2049.6,2048.7,0.83295693]
[1773277388982,0.2439,2050.0,2048.7,0.83295693]
[1773277389272,6.24368,2050.0,2048.7,0.83295693]
[1773277389478,8.38211523,2050.0,2048.7,0.83295693]
[1773277389977,8.38697976,2050.0,2048.7,0.83295693]
[1773277390178,6.404,2049.9,2048.7,0.83295693]
[1773277391982,12.40401,2049.9,2048.7,0.83295693]
[1773277392277,6.24572,2049.3,2048.2,0.82657187]
[1773277392476,6.405,2049.2,2048.2,0.82657187]
[1773277393576,6.405,2049.2,2048.3,0.82557078]
[1773277393772,10.31917073,2049.9,2048.3,0.82557078]
[1773277393972,10.31917073,2049.9,2048.6,0.82565301]
[1773277393973,0.2439,2049.9,2048.6,0.82565301]
[1773277394173,14.5397412,2049.9,2048.6,0.82565301]
[1773277394376,8.38252523,2049.9,2048.6,0.82565301]
[1773277394984,2.38233523,2049.9,2048.6,0.82565301]
[1773277395383,0.2439,2049.9,2048.6,0.82565301]
[1773277395575,8.54057011,2049.9,2048.6,0.82565301]
[1773277395776,2.38233523,2049.9,2048.6,0.82565301]
[1773277396888,8.38235523,2049.9,2048.6,0.82565301]
[1773277397786,2.13843523,2049.6,2048.6,0.82565301]
[1773277397984,0.24392,2049.7,2048.6,0.82565301]
[1773277398183,2.13843523,2049.6,2048.6,0.82565301]
[1773277398391,0.24394,2049.5,2048.6,0.82565301]
[1773277398587,2.38240523,2049.3,2048.2,0.80499331]
[1773277398984,8.38419523,2049.3,2048.2,0.80499331]
[1773277399784,2.38240523,2049.3,2048.2,0.80499331]
[1773277400396,0.24397,2049.3,2048.2,0.80499331]
[1773277405600,6.414,2049.4,2048.3,0.77950815]
[1773277407098,8.32957153,2049.3,2048.3,0.77950815]
[1773277407300,2.13843523,2049.3,2048.3,0.77950815]
[1773277407603,6.65796,2049.4,2048.3,0.77950815]
[1773277407801,6.19265035,2049.3,2048.3,0.77950815]
[1773277408100,6.65796,2049.4,2048.3,0.77950815]
[1773277408299,6.19452975,2049.3,2048.3,0.77950815]
[1773277408497,6.65796,2049.4,2048.3,0.77950815]
[1773277409097,6.19661939,2049.3,2048.3,0.77950815]
[1773277410899,0.06450921,2049.2,2048.3,0.77950815]
[1773277413400,6.19661939,2049.3,2047.2,11.35766834]
[1773277413401,0.24417,2047.7,2047.2,11.35766834]
[1773277413606,6.00673,2047.6,2046.1,4.873]
[1773277413803,6.19661939,2047.5,2046.1,0.70807174]
[1773277414000,0.68422822,2047.9,2046.1,0.70807174]
[1773277414200,7.05259673,2047.9,2046.1,0.70807174]
[1773277414400,0.68777093,2047.9,2046.4,0.70807174]
[1773277414599,6.443,2047.8,2046.4,0.70807174]
[1773277414799,7.12722822,2047.8,2046.4,0.70807174]
[1773277415802,6.449,2047.7,2046.4,0.70807174]
[1773277416201,0.68422822,2047.6,2046.4,0.70807174]
[1773277417404,0.68422822,2047.4,2046.4,0.70807174]
[1773277417606,0.68422822,2047.2,2046.4,0.70807174]
[1773277418006,6.458,2047.1,2046.4,0.70807174]
[1773277418410,0.68422822,2047.1,2046.4,0.70807174]
[1773277418603,6.46,2047.0,2046.4,0.70807174]
[1773277418808,0.68422822,2046.9,2046.4,0.70807174]
[1773277419009,0.68422822,2046.9,2046.2,0.70807174]
[1773277419312,0.68422822,2046.9,2046.1,0.00553479]
[1773277419905,0.68422822,2046.9,2046.1,0.71360653]
[1773277420113,0.68422822,2046.7,2046.1,0.71360653]
[1773277421005,6.47,2046.6,2046.1,0.71360653]
[1773277421205,6.02070281,2046.7,2046.1,0.71360653]
[1773277421508,0.71414258,2046.9,2046.1,0.71360653]
[1773277421711,6.473,2046.8,2046.1,0.71360653]
[1773277422009,6.33714757,2046.9,2046.1,0.71360653]
[1773277422411,6.476,2046.9,2046.1,0.71360653]
[1773277423514,0.71414258,2047.2,2046.1,0.71360653]
[1773277423713,6.481,2046.9,2046.1,0.71360653]
[1773277424314,6.483,2046.9,2046.1,0.71360653]
[1773277425314,0.71414258,2047.2,2046.1,0.71360653]
[1773277425515,7.20114258,2047.1,2046.1,0.71360653]
[1773277425709,0.71414258,2047.3,2046.1,0.71360653]
[1773277425908,6.488,2047.3,2046.1,0.71360653]
[1773277426115,0.71414258,2047.6,2046.1,0.71360653]
[1773277426313,7.20314258,2047.5,2046.1,0.71360653]
[1773277426816,6.49,2047.4,2046.1,0.71360653]
[1773277427012,7.20414258,2047.4,2046.1,0.71360653]
[1773277427515,7.20414258,2047.4,2046.3,0.72915775]
[1773277428108,6.492,2047.5,2046.3,0.72915775]
[1773277428719,7.20614258,2047.5,2046.3,0.72915775]
[1773277429224,0.71414258,2047.7,2046.5,0.72915775]
[1773277429414,7.20814258,2047.7,2046.5,0.72915775]
[1773277429614,0.71414258,2047.6,2046.5,0.72915775]
[1773277430113,7.26340317,2047.5,2046.5,0.72915775]
[1773277430714,0.77194588,2047.9,2046.5,0.72915775]
[1773277430915,0.00354271,2047.9,2047.1,0.75813502]
[1773277431115,0.77194588,2047.9,2047.1,0.75813502]
[1773277431712,0.00354271,2047.9,2047.1,0.75813502]
[1773277431911,0.76840317,2048.3,2046.7,0.75813502]
[1773277432118,0.76840317,2047.9,2046.7,0.75813502]
[1773277432620,0.76840317,2047.8,2046.7,0.75813502]
[1773277433008,0.77427759,2047.8,2046.7,0.75813502]
[1773277433219,0.00587442,2047.8,2046.7,0.75813502]
[1773277433620,0.77427759,2047.8,2046.7,0.75813502]
[1773277434017,0.76840317,2047.7,2046.7,0.75813502]
[1773277434212,0.76840317,2047.7,2046.2,0.75813502]
[1773277434418,0.76840317,2047.1,2046.1,0.76366981]
[1773277434617,0.76840317,2046.9,2046.1,0.76366981]
[1773277434811,0.76840317,2046.9,2046.1,0.00553479]
[1773277435014,12.5096,2047.0,2045.1,0.022]
[1773277435015,0.76840317,2046.7,2045.3,0.75813502]
[1773277435422,0.76840317,2047.3,2045.4,0.75813502]
[1773277435618,0.76840317,2046.9,2045.4,2.90198201]
[1773277435821,0.76840317,2046.8,2045.5,0.75813502]
[1773277436021,0.76840317,2046.8,2045.5,0.76200349]
[1773277436022,7.27440317,2046.8,2045.5,0.76200349]
[1773277436423,0.76840317,2046.8,2045.5,0.76200349]
[1773277436620,0.76840317,2046.8,2045.5,0.00386847]
[1773277436817,0.76840317,2046.6,2045.6,0.75813502]
[1773277437621,0.76840317,2046.5,2045.6,0.75813502]
[1773277437924,0.76840317,2046.4,2045.6,0.75813502]
[1773277438828,0.76840317,2046.6,2045.6,0.75813502]
[1773277440429,0.76840317,2046.7,2045.6,0.75813502]
[1773277440928,6.532,2046.6,2045.6,0.75813502]
[1773277441122,0.76840317,2046.7,2045.6,0.75813502]
[1773277442027,6.536,2046.6,2045.6,0.75813502]
[1773277442226,0.76840317,2046.4,2045.6,0.75813502]
[1773277442630,0.76840317,2046.2,2045.1,0.75813502]
[1773277443630,0.76840317,2046.0,2045.1,0.76338152]
[1773277444828,0.00544893,2046.2,2045.1,0.76338152]
[1773277445228,0.76840317,2046.9,2045.7,0.75813502]
[1773277446331,0.77204471,2046.9,2045.7,0.75813502]
[1773277446526,0.00364154,2046.9,2045.7,0.75813502]
[1773277447433,0.77204471,2046.9,2045.7,0.75813502]
[1773277448934,0.76840317,2046.8,2045.7,0.75813502]
[1773277449426,0.76840317,2046.6,2045.1,0.76338152]
[1773277449632,0.76840317,2046.5,2045.4,0.75813502]
[1773277451429,0.76840317,2046.5,2045.1,0.76338152]
[1773277452229,0.76840317,2046.4,2045.1,0.76338152]
[1773277455138,0.76840317,2046.7,2045.2,0.75813502]
[1773277455835,0.76840317,2046.7,2045.1,2.14909349]
[1773277455836,0.76840317,2046.7,2045.4,0.75813502]
[1773277457536,0.77204471,2046.9,2045.6,0.75813502]
[1773277457937,0.00364154,2046.9,2045.6,0.75813502]
[1773277458741,0.76840317,2047.4,2046.0,0.75813502]
[1773277459744,0.77184126,2047.4,2046.0,0.75813502]
[1773277460339,0.77184126,2047.4,2046.1,6.381]
[1773277460543,0.77184126,2047.4,2046.2,0.76494218]
[1773277461740,0.00343809,2047.4,2046.4,0.76494218]
[1773277462244,0.00343809,2047.4,2046.6,0.76494218]
[1773277462440,0.79447551,2048.1,2046.8,0.76494218]
[1773277462845,0.79447551,2048.1,2047.0,0.76494218]
[1773277463042,0.79447551,2048.7,2047.2,0.76494218]
[1773277463444,0.79854157,2048.7,2047.2,0.76494218]
[1773277464444,0.79854157,2048.7,2046.9,6.62525]
[1773277464445,0.79854157,2048.7,2047.5,0.76494218]
[1773277464641,0.79854157,2048.7,2047.7,0.76494218]
[1773277467344,0.79854157,2048.7,2047.2,0.76494218]
[1773277469641,0.79447551,2048.6,2047.2,0.76494218]
[1773277474457,0.79447551,2048.3,2047.2,0.76494218]
[1773277475249,0.79447551,2048.0,2046.8,0.76494218]
[1773277477155,0.79447551,2047.7,2046.6,0.77114397]
[1773277477959,0.79447551,2047.7,2046.7,0.76494218]
[1773277478161,0.79447551,2048.3,2046.7,0.76494218]
[1773277482663,0.74755703,2048.0,2046.7,0.76494218]
[1773277487775,0.72314059,2047.4,2046.6,0.00620179]
[1773277488365,0.72314059,2047.4,2046.6,0.80359758]
[1773277489573,0.74755703,2046.8,2045.5,0.79739579]
[1773277490669,0.75223504,2046.8,2045.5,0.80095225]
[1773277491881,0.81801565,2046.5,2045.5,0.80095225]
[1773277494474,0.81801565,2046.5,2045.6,0.7805427]
[1773277494677,0.81801565,2046.7,2045.6,0.7805427]
[1773277494978,0.81801565,2046.7,2045.8,0.7805427]
[1773277495771,0.00467801,2046.8,2045.8,0.7805427]
[1773277496071,0.82269366,2046.8,2045.8,0.7805427]
[1773277497377,0.82269366,2046.8,2045.6,0.7805427]
[1773277497871,0.81801565,2046.5,2045.6,0.7805427]
[1773277500680,0.81801565,2046.7,2045.6,0.7805427]
[1773277503681,0.00467801,2046.8,2045.9,0.7805427]
[1773277504274,0.82269366,2046.8,2045.9,0.7805427]
[1773277504979,0.00467801,2046.8,2045.9,0.7805427]
[1773277507285,0.00467801,2046.8,2046.2,0.7805427]
[1773277507982,0.81801565,2047.6,2046.2,0.7805427]
[1773277508886,0.82294816,2047.6,2046.2,0.7805427]
[1773277509582,0.82294816,2047.6,2046.5,0.7805427]
[1773277509774,0.82294816,2047.6,2046.6,0.7805427]
[1773277511285,0.82294816,2047.6,2046.8,0.7805427]
[1773277512182,0.82294816,2047.6,2046.4,2.14583156]
[1773277512183,0.81801565,2047.5,2046.2,6.385]
[1773277512485,0.81801565,2047.3,2046.3,0.7805427]
[1773277512681,0.81801565,2047.2,2046.3,0.7805427]
[1773277517390,0.81801565,2047.2,2046.4,0.7805427]
[1773277517988,0.81801565,2047.5,2046.4,0.7805427]
[1773277518189,0.81801565,2047.5,2046.5,0.7805427]
[1773277523393,0.81801565,2047.5,2046.4,0.76030771]
[1773277523897,0.81765893,2047.4,2046.4,0.76030771]
[1773277524094,0.81765893,2047.0,2046.0,0.76030771]
[1773277524289,0.81765893,2046.5,2045.6,0.76030771]
[1773277524484,0.81765893,2046.3,2045.5,0.00355646]
[1773277524685,0.81765893,2046.0,2045.2,0.76030771]
[1773277525689,0.82109508,2046.0,2045.2,0.7645188]
[1773277529099,0.81765893,2045.6,2044.7,0.022]
[1773277529390,0.73862554,2044.9,2043.7,0.78230771]
[1773277529592,0.73862554,2044.8,2043.7,0.78230771]
[1773277529993,0.73862554,2044.8,2043.9,0.76030771]
[1773277530190,0.73862554,2044.8,2043.9,0.76565032]
[1773277530391,0.73872888,2045.4,2044.5,0.76030771]
[1773277530794,0.7388232,2045.3,2044.0,0.76030771]
[1773277530994,0.75586935,2044.9,2043.9,0.00534261]
[1773277531205,0.75586935,2044.6,2043.5,0.022]
[1773277532204,0.7339917,2044.5,2043.3,0.022]
[1773277532403,0.7339917,2044.5,2043.3,0.78230771]
[1773277532695,0.7339917,2044.3,2043.3,0.78230771]
[1773277533196,0.7339917,2044.3,2043.3,0.78709886]
[1773277533197,0.73767901,2044.3,2043.3,0.78709886]
[1773277533898,0.73767901,2044.3,2042.5,0.022]
[1773277533899,0.51473811,2044.1,2042.7,0.76030771]
[1773277534094,0.46607655,2043.9,2042.5,0.78230771]
[1773277534294,0.46607655,2043.7,2042.5,0.78230771]
[1773277534491,6.94607655,2044.1,2042.6,0.76030771]
[1773277534697,0.46607655,2044.0,2042.6,0.76030771]
[1773277534895,0.00368731,2044.3,2042.5,0.022]
[1773277534896,0.46621816,2044.2,2043.1,0.76030771]
[1773277535499,0.46621816,2044.2,2043.1,0.80430771]
[1773277535694,0.46621816,2044.2,2043.1,0.76030771]
[1773277535889,0.46621816,2044.2,2043.3,0.76030771]
[1773277536092,0.46621816,2044.2,2042.7,0.76030771]
[1773277536500,0.46621816,2044.2,2043.1,0.76030771]
[1773277537002,0.46621816,2044.2,2043.3,0.76030771]
[1773277538703,0.46621816,2044.2,2043.4,0.76030771]
[1773277539301,0.50441018,2044.3,2043.4,0.76030771]
[1773277539504,0.50441018,2044.3,2043.3,3.11610771]
[1773277539805,0.50441018,2044.3,2043.4,0.76030771]
[1773277540103,0.50441018,2044.3,2043.3,2.3558]
[1773277540300,0.50441018,2044.3,2043.3,3.11610771]
[1773277541192,0.50441018,2044.3,2043.4,0.76030771]
[1773277541598,0.50441018,2044.3,2042.7,0.83423003]
[1773277541599,6.0176,2043.9,2042.7,0.83423003]
[1773277541905,0.24461,2043.9,2042.7,0.83423003]
[1773277542106,0.24461,2043.9,2042.7,0.87823003]
[1773277542303,6.2623,2043.9,2042.7,0.83423003]
[1773277542789,0.00102919,2043.8,2042.7,0.83423003]
[1773277543192,6.26475731,2044.3,2042.9,0.83517156]
[1773277543396,6.488,2044.0,2042.9,0.83517156]
[1773277543995,6.488,2043.9,2042.9,0.87917156]
[1773277544201,0.24826731,2044.3,2042.9,0.83517156]
[1773277544502,0.24826731,2044.3,2043.2,0.83517277]
[1773277544503,0.00368731,2044.3,2043.2,0.83517277]
[1773277545098,0.00368731,2044.3,2043.4,0.84880969]
[1773277545504,0.00368731,2044.3,2043.8,0.84880969]
[1773277545902,0.00368731,2044.3,2043.4,2.4708]
[1773277546206,0.24458,2044.2,2043.4,2.4708]
[1773277546803,6.26138,2044.2,2043.1,0.84881498]
[1773277547198,6.26138,2044.2,2042.6,0.85112156]
[1773277547399,6.26225,2043.9,2042.6,0.85112156]
[1773277547599,0.24462,2043.9,2042.6,0.85112156]
[1773277547909,0.00384546,2043.4,2042.5,0.0255893]
[1773277548103,0.00384546,2043.4,2042.5,0.87713382]
[1773277548310,0.00384546,2043.6,2042.7,0.85154452]
[1773277548909,0.00384546,2043.6,2042.9,0.85154452]
[1773277549409,0.00384546,2043.6,2042.9,0.89554452]
[1773277549609,0.00384546,2043.6,2042.9,0.85154452]
[1773277549809,0.01785819,2044.0,2042.9,0.85154452]
[1773277550014,6.50467356,2043.9,2042.9,0.85154452]
[1773277550303,0.01467356,2044.0,2042.9,0.85154452]
[1773277550511,0.01467356,2044.2,2042.9,0.85154452]
[1773277550698,0.01467356,2044.2,2043.2,0.044]
[1773277550898,0.01467356,2044.2,2043.3,0.84088129]
[1773277551100,0.01428706,2044.4,2043.3,0.84088129]
[1773277551309,0.01428706,2044.4,2043.6,0.84130556]
[1773277551610,8.88938952,2044.8,2043.6,0.84130556]
[1773277551611,0.01428706,2044.6,2043.6,0.84130556]
[1773277551907,0.01428706,2044.6,2043.9,0.84130556]
[1773277552708,0.82374717,2044.0,2042.7,0.8174167]
[1773277553105,0.82797692,2044.0,2043.1,0.8174167]
[1773277553505,0.82797692,2044.0,2043.3,0.8174167]
[1773277554009,0.82797692,2044.0,2043.3,0.044]
[1773277555310,0.82797692,2044.0,2043.1,0.8174167]
[1773277556005,0.82797692,2044.0,2043.2,0.044]
[1773277556206,0.82797692,2044.0,2043.2,0.8174167]
[1773277556510,0.82797692,2044.0,2043.3,0.8614167]
[1773277556711,0.82797692,2044.0,2043.3,0.8174167]
[1773277557005,0.00422975,2044.0,2043.5,0.8614167]
[1773277557203,0.82374717,2044.2,2043.5,0.8174167]
[1773277557408,7.32283726,2044.1,2043.6,0.044]
[1773277557607,4.0255298,2044.4,2043.5,0.8174167]
[1773277557608,0.82374717,2044.2,2043.5,0.8174167]
[1773277558003,7.31174717,2044.4,2043.8,0.8174167]
[1773277558206,0.00630382,2044.4,2043.8,0.8174167]
[1773277558406,0.00630382,2044.4,2044.0,0.8174167]
[1773277558602,0.00630382,2044.4,2044.0,0.82171403]
[1773277558910,0.00630382,2044.4,2044.2,0.044]
[1773277559316,6.51925371,2044.4,2044.0,0.82171403]
[1773277559514,0.00630382,2044.4,2044.2,0.044]
[1773277559818,0.83005099,2044.4,2044.0,0.00429733]
[1773277560005,0.00630382,2044.4,2044.0,0.82171403]
[1773277560409,6.52998678,2044.4,2044.0,0.82171403]
[1773277560703,0.00630382,2044.4,2044.0,0.82171403]
[1773277560907,6.52806444,2044.6,2044.0,0.82171403]
[1773277561312,4.0255298,2045.0,2044.0,0.82171403]
[1773277561618,0.82374717,2044.9,2044.0,0.82171403]
[1773277561809,0.82374717,2044.9,2044.0,0.00429733]
[1773277561810,0.82374717,2044.8,2044.0,0.00429733]
[1773277562011,0.82374717,2044.7,2044.0,0.00429733]
[1773277562519,0.82374717,2044.5,2043.8,0.8174167]
[1773277562812,0.82374717,2044.3,2043.5,0.8174167]
[1773277563515,0.82374717,2044.3,2043.5,0.8210927]
[1773277566619,7.32574717,2044.3,2043.5,0.8210927]
[1773277566818,0.82374717,2044.3,2043.5,0.8210927]
[1773277567019,0.82374717,2043.9,2043.3,0.8174167]
[1773277567215,0.2446,2044.0,2043.3,0.8174167]
[1773277567515,0.82374717,2044.1,2043.3,0.8174167]
[1773277567917,0.82374717,2044.1,2043.3,0.82272806]
[1773277568919,7.32674717,2044.3,2043.3,0.82272806]
[1773277569419,0.82374717,2044.2,2043.3,0.82272806]
[1773277573321,7.34569204,2044.1,2043.3,0.82272806]
[1773277573521,0.82374717,2044.1,2043.3,0.82272806]
[1773277574623,7.33274717,2044.3,2043.3,0.82272806]